Workbook

Sheet Instrucciones
B2: INVENTARIO NACIONAL DE GASES DE EFECTO INVERNADERO - AÑO BASE 2000
B3: Sector Desechos - Tratamiento y eliminación de aguas residuales domésticas
B5: INSTRUCCIONES
B7: ALCANCE
B8: ElTratamiento y eliminación de aguas residuales domésticas, involucra a todas las emisiones de gases de efecto invernadero que se generan por la descomposición de aguas residuales domésticas en condiciones anaeróbicas. Se contabilizan además las emisiones procedentes de las excretas humanas.
B11: El Tratamiento y eliminación de aguas residuales domésticas, comprende las siguientes fuentes: - Aguas residuales domésticas. - Excretas humanas
B14: METODOLOGÍA DE CALCULO
B16: Directrices del IPCC para Inventarios Nacionales del IPCC - 1996 (GL 1996) en lo que respecta a aguas residuales
B17: Orientación del IPCC sobre las buenas prácticas y la gestión de la incertidumbre en los inventarios nacionales de Gases de Efecto Invernadero (OBP 2000)
B18: Sector: Desechos
F19: Para el cálculo de Emisiones GEI:
F24: Nivel 1: El método mas básico que es aplicado cuando se utiliza niveles de actividad disponibles y factores de emisión por defecto de las guías del IPCC.
F25: Nivel 2: Método intermedio de cálculo en términos de esfuerzo y sofisticación, en la mayoría de casos se basa en el uso de niveles de actividad disponible y factores de emisión mas detallados o específicos.
F27: Nivel 3: El método mas exigente en términos de complejidad y requerimientos de datos, usualmente implica el uso de modelos y ecuaciones complejas.
B30: ESTRUCTURA DE LA HOJA DE CALCULO
B32: Las hojas de cálculo, en este libro, están agrupadas por los siguientes colores:
B33: Color de hoja | C33: Descripción
C34: Caracterización de datos
C35: Información base de nivel de actividad
C36: Información procesada de nivel de actividad
C37: Propiedades, Factores de conversión y Factores de emisión de GEI
C38: Hojas de estimaciones de emisiones GEI por desechos
C39: Resultados GEI por desechos
B41: Los grupos de hojas se relacionan como se muestra en el diagrama:
B65: ABREVIATURAS
B67: GEI | C67: : Gases de Efecto Invernadero
B68: FE | C68: : Factor de Emisión
B69: INGEI | C69: : Inventario Nacional de Gases de Efecto Invernadero
B70: CH4 | C70: : Metano
B71: N2O | C71: : Oxido Nitroso
B72: CO2e | C72: : Dióxido de carbono equivalente

Sheet Características datos
B2: Caracterización de Datos - Sector Desechos (Residuos sólidos)
B3: Definición IPCC: se refiere a la definición -literal o abreviada- de las GL1996. En algunos casos la definición abreviada se acompaña de un comentario (columna G) con la definición literal
B4: Definición INGEI: se refiere a la definición de las GL1996, ajustada a la realidad o circunstancias del Perú. Este ajuste se identificó en el desarrollo del INGEI y mantiene el concepto general de la definición original en las GL1996
C5: No aplica o no se considera en este INGEI
B7: Categorización | F7: Fuente de emisión / captura | G7: Definición | H7: Nivel de actividad | I7: Unidad | J7: TIER/Nivel | K7: Fuente de información | L7: Uso de la información | M7: Gases de GEI generados por el nivel de actividad | N7: Comentarios | O7: Hojas relacionada
B8: 6 | F8: Desechos
C9: 6B | F9: Tratamiento de aguas residuales | G9: Definición IPCC: Metano y óxido nitroso generados por la descomposición de materia orgánica en las aguas.residuales. Definición INGEI: metano y óxido nitroso generados por la descomposición de materia orgánica en las aguas residuales industriales y domésticas .
D10: 6B2 | F10: Tratamiento y eliminación de aguas residuales domésticas | G10: Definición IPCC: Emisiones de metano que se generan en los tratamientos de aguas residuales y lodos procedentes de las viviendas y fuentes comerciales. Se consideran además las emisiones de oxido nitroso procedentes de las excretas humanas vertidas en ambientes acuáticos. Definición INGEI: Emisiones de metano generadas en los procesos de tratamiento de aguas residuales domésticas.
E11: 6B2a | F11: Aguas residuales domésticas | G11: Definición IPCC: Manejo de aguas residuales y lodo, de fuentes domésticas y comerciales (incluyendo residuos humanos), a través de la recolección y tratamiento de aguas residuales, letrinas o descarga en fuentes de agua. Definición INGEI: Emisiones de metano generadas en los procesos de tratamiento de aguas residuales domésticas, considerando los vertimientos al alcatarillado público. | H11: Población con sistema de alcantarillado | I11: número de personas en miles | J11: 1 | K11: Superintendencia Nacional de Servicios de Saneamiento (SUNASS) | L11: Sirven para determinar en su conjunto las emisiones de metano generadas por el tratamiento de las aguas residuales domésticas. | M11: CH4 | O11: InfoProc 6B2a
H12: Porcentaje de aguas residuales tratadas | I12: % | J12: 1 | K12: Superintendencia Nacional de Servicios de Saneamiento (SUNASS)
H13: Demanda Biológica de Oxígeno (DBO) | I13: Kg DBO/1000 pesonas∙año | J13: 1 | K13: Reglamento Nacional de Edificaciones – Norma OS.090: Plantas de Tratamiento de Aguas Residuales. (Debe hacerse un ajuste para llevarlo a las unidades requeridas). | O13: Prop. y Fact. de conversión
H14: Población del ámbito de la EPS | I14: número de personas en miles | J14: 1 | K14: Superintendencia Nacional de Servicios de Saneamiento (SUNASS) | L14: La población de ámbito de la EPS y el Porcentaje de cobertura de alcantarillado, son usados para estimar la Población con sistema de alcantarillado, en caso esta información no está disponible: Población con sistema de alcantarillado = Población de ámbito de la EPS x Porcentaje de cobertura de alcantarillado | O14: InfoBase 6B2a
H15: Porcentaje de cobertura de alcantarillado | I15: % | J15: 1 | K15: Superintendencia Nacional de Servicios de Saneamiento (SUNASS)
E16: 6B2b | F16: Excretas humanas | G16: Definición IPCC: Las emisiones de N2O de las excretas humanas, están directamente relacionadas al ciclo del nitrógeno en la Agricultura. Definición INGEI: se considera las emisiones indirectas de N2O por la ingesta de proteinas en la población. Estas emisiones no son consideradas en Agricultura y forman parte de las "Aguas residuales domésticas", que solo contabilizan CH4. | H16: Población nacional | I16: número de personas en miles | K16: Instituto Nacional de Estadísticas e Informática (INEI) | L16: Sirve para determinar la cantidad de nitrógeno contenida en la orina humana | M16: N2O | O16: infoBase6B2b(población)
H17: Consumo de proteínas | I17: g/persona∙día | J17: 1 | K17: Organización de las Naciones Unidas para la Agricultura y la Alimentación (FAO) | O17: InfoBase 6B2b

Sheet InfoBase 6B2a
B2: Información Básica: Feacción de aguas residuales que son tratadas
B4: DATOS DE LA INFORMACIÓN BASE
B5: Código | C5: 6 B 2
B6: Subcodigo
B7: Información | C7: Nivel de actividad | D7: Cobertura de tratamiento de aguas residuales domésticas en poblaciones urbanas
C8: Documento | D8: Información envíada vía correo electrónico por Marissa Andrade (SUNASS)
C9: Título | D9: Coberturas de agua potable y alcantarillado
C10: Subtitulo
B11: Ubicación especifica | C11: Pagina | F11: Cuadro | I11: Anexo
B12: Vínculo
B14: Institución
B17: Código | C17: Región | D17: Empresa Prestadora de Servicio | E17: Tratamiento de aguas residuales | F17: Población ámbito EPS | G17: Población con alcantarillado
E18: 2000 | L18: Relación de esta hoja, con otras:
B19: 1 | C19: Amazonas | D19: EMUSAP Amazonas | E19: 0 | F19: 19993.17721 | G19: 16082
B20: 2 | C20: Huánuco | D20: SEDA Huánuco S.A. | E20: 0 | F20: 193678.6314 | G20: 58146
B21: 3 | C21: Ucayali | D21: EMAPACOP S.A. | E21: 0 | F21: 181767.4388 | G21: 82287
B22: 4 | C22: Loreto | D22: EPS SEDALORETO S.A. | E22: 0 | F22: 399398.0312 | G22: 189431
B23: 5 | C23: Lima | D23: EMAPA Cañete S.A. | E23: 0.007475936066 | F23: 149624.8754 | G23: 71055
B24: 6 | C24: Puno | D24: EMSA Puno S.A. | E24: 0.7493477008 | F24: 143221.3437 | G24: 75823
B25: 7 | C25: Amazonas | D25: EPSSMU S.R.Ltda. | E25: 0 | F25: 27492.76381 | G25: 15152
B26: 8 | C26: Tumbes | D26: Aguas de Tumbes | E26: 0.2658713461 | F26: 154830.5402 | G26: 58939
B27: 9 | C27: Cerro de Pasco | D27: EMAPA Pasco S.A. | E27: 0 | F27: 77535.97367
B28: 10 | C28: Ica | D28: EMAPISCO S.A. | E28: 0 | F28: 78149.628 | G28: 51768
B29: 11 | C29: Cajamarca | D29: SEDACAJ S.A. | E29: 0.4770720268 | F29: 125925.9401 | G29: 83435
B30: 12 | C30: Tacna | D30: EPS TACNA S.A. | E30: 0.9580543712 | F30: 208032.4406 | G30: 181156.45
B31: 13 | C31: Ica | D31: EMAPAVIGS S.A.C. | E31: 0 | F31: 33652.75999 | G31: 28268
B32: 14 | C32: Áncash | D32: SEDACHIMBOTE S.A. | E32: 0.4373692153 | F32: 329229.1519 | G32: 262967
B33: 15 | C33: Ayacucho | D33: EPSASA | F33: 164216.4781 | G33: 88322
B34: 16 | C34: San Martín | D34: EMAPA San Martín S.A. | E34: 0 | F34: 163870.0209 | G34: 85242
B35: 17 | C35: Madre de Dios | D35: EMAPAT S.R.Ltda. | E35: 0 | F35: 43122.38682 | G35: 13888
B36: 18 | C36: Ica | D36: SEMAPACH S.A. | E36: 1 | F36: 149418.5203 | G36: 89766
B37: 19 | C37: Junín | D37: EPS Selva Central S.A. | E37: 0.1809999178 | F37: 99095.22223 | G37: 44657
B38: 20 | C38: San Martín | D38: EMAPA MOYOBAMBA S.R.LTDA. | E38: 0.2267658395 | F38: 44009.54906 | G38: 31616
B39: 21 | C39: Huancavelica | D39: EMAPA HUANCAVELICA S.A.C | E39: 0 | F39: 30731.59259 | G39: 20416
B40: 22 | C40: Moquegua | D40: EPS MOQUEGUA S.A. | E40: 0.7042056493 | F40: 40960.8503 | G40: 30810
B41: 23 | C41: Puno | D41: EMAPA Y S.R.L. | E41: 0 | F41: 12544.49846 | G41: 6212
B42: 24 | C42: Lima | D42: EMAPA HUARAL S.A. | E42: 0 | F42: 71568.23032 | G42: 35231
B43: 25 | C43: Lima | D43: EMAPA HUACHO S.A. | E43: 0 | F43: 102990.6104 | G43: 71687
B44: 26 | C44: Lima | D44: SEDAPAL S.A. | E44: 0.05790968364 | F44: 7498724.859 | G44: 5639805
B45: 27 | C45: Moquegua | D45: EPS ILO S.A. | E45: 0.6306861962 | F45: 58316.95721 | G45: 38067
B46: 28 | C46: La Libertad | D46: SEDALIB S.A. | E46: 0.8773103943 | F46: 750075.6596 | G46: 522462
B47: 29 | C47: Lambayeque | D47: EPSEL S.A. | E47: 0.702903606 | F47: 737316.3615 | G47: 524691
B48: 30 | C48: San Martín | D48: SEDAPAR S.A. | E48: 0.1356548959 | F48: 877807.1252 | G48: 713831
B49: 31 | C49: Cusco | D49: SEDACUSCO S.A. | E49: 0.4021003892 | F49: 308100.7262 | G49: 228214
B50: 32 | C50: Piura | D50: EPS GRAU S.A. | E50: 0.5758525829 | F50: 894569.4724 | G50: 578826
B51: 33 | C51: Áncash | D51: EPS CHAVIN S.A. | E51: 0 | F51: 99075.98916 | G51: 57755
B52: 34 | C52: Cusco | D52: EMAQ S.R.LTDA. | E52: 0 | F52: 26639.59178 | G52: 9701
B53: 35 | C53: Amazonas | D53: EMAPAB S.R.LTDA. | E53: 0 | F53: 25176.38822 | G53: 16257
B54: 36 | C54: Lima | D54: SEMAPA BARRANCA S.A. | E54: 0 | F54: 62546.53331 | G54: 46594
B55: 37 | C55: Ica | D55: EMAPICA S.A. | E55: 0.5175960062 | F55: 181319.5964 | G55: 106835
B56: 38 | C56: Cusco | D56: EMPSSAPAL S.A. | E56: 0 | F56: 50752.499 | G56: 29934
B57: 39 | C57: Junín | D57: EPS SIERRA CENTRAL S.R.L. | E57: 0 | F57: 46719.35377 | G57: 30832
B58: 40 | C58: Puno | D58: EPS NOR PUNO S.A. | E58: 0 | F58: 24550.4513
B59: 41 | C59: Puno | D59: SEDAJULIACA S.A. | E59: 0.800712972 | F59: 180397.4367 | G59: 111414
B60: 42 | C60: Junín | D60: EPS MANTARO S.A. | E60: 0 | F60: 79354.08492 | G60: 45737
B61: 43 | C61: Apurímac | D61: EMUSAP ABANCAY S.A. | E61: 0 | F61: 45083.77898 | G61: 29959
B62: 44 | C62: Apurímac | D62: EMSAP CHANKA S.R.L. | E62: 0 | F62: 22226.99821
B63: 45 | C63: Cajamarca | D63: EPS MARAÑON S.R.L. | F63: 80430.33471
B64: 46 | C64: Junín | D64: SEDAM HUANCAYO S.A.C. | E64: 0 | F64: 327162.2049
B65: 47 | C65: Cusco | D65: EMSAPA CALCA S.R.L. | F65: 9057.58722
B66: 48 | C66: Puno | D66: EPS AGUAS DEL ALTIPLANO | F66: 19690.52529
B67: 50 | C67: Junín | D67: EMSAPA YAULI S.RL.L. | F67: 36003.96642
B68: 51 | C68: Arequipa | D68: SEDAPAR S.R.L. (Rioja) | F68: 18697.43487
F69: =SUM(F19:F68) -> 15504856.57 | G69: =SUM(G19:G68) -> 10423270.45

Sheet InfoBase 6B2b(población)
B2: Información Básica: Población nacional según región
B4: DATOS DE LA INFORMACIÓN BASE
B5: Código | C5: 6A y 6B2
B6: Subcodigo
B7: Información | C7: Nivel de actividad | D7: Población según región/provincia/distrito
C8: Documento | D8: -
C9: Título | D9: Poblaciónal 2000
C10: Subtitulo
B11: Ubicación especifica | C11: Pagina | F11: Cuadro | I11: Anexo
B12: Vínculo | C12: http://proyectos.inei.gob.pe/web/poblacion/#
C13: Visitado en mayo 2015
B14: Institución | C14: Instituto Nacional de Estadísticas e Informática
D18: Población total oficial del Perú: | E18: 25983588 | H18: Relación de esta hoja, con otras:

Sheet InfoBase 6B2b
B2: Consumo diario de proteínas
B4: DATOS DE LA INFORMACIÓN BASE
B5: Código | C5: 6 B 2
B6: Subcodigo
B7: Información | C7: Nivel de actividad | D7: Consumo de proteína per cápita
C8: Documento | D8: Perfil de País: Indicadores de Seguridad Alimentaria
C9: Título | D9: Suministro Alimentario para el Consumo Humano
C10: Subtitulo | D10: Consumo total de proteínas
B11: Ubicación especifica | C11: Pagina | D11: 1 | F11: Cuadro | I11: Anexo
B12: Vínculo | C12: http://www.fao.org/fileadmin/templates/ess/documents/food_security_statistics/country_profiles/esp/Peru_S.pdf
C13: Visitado en mayo 2015
B14: Institución | C14: ORGANIZACION DE LAS NACIONES UNIDAS PARA LA AGRICULTURA Y LA ALIMENTACION - FAO
B17: Porcentaje de proteínas | D17: 67 | E17: g/persona·día | G17: Relación de esta hoja, con otras:

Sheet InfoProc 6B2a
B2: Información Procesada: Población nacional según región (millares)
H3: Relación de esta hoja, con otras:
B5: Código | C5: Región | D5: Empresa Prestadora de Servicio | E5: Tratamiento de aguas residuales [%] | F5: Población con alcantarillado [miles]
B7: ='InfoBase 6B2a'!B19 -> 1 | C7: ='InfoBase 6B2a'!C19 -> Amazonas | D7: ='InfoBase 6B2a'!D19 -> EMUSAP Amazonas | E7: =VLOOKUP(D7,'InfoBase 6B2a'!$D$19:$G$68,2,FALSE) -> 0 | F7: =VLOOKUP(D7,'InfoBase 6B2a'!$D$19:$G$68,4,FALSE)/1000 -> 16.082
B8: ='InfoBase 6B2a'!B25 -> 7 | C8: ='InfoBase 6B2a'!C25 -> Amazonas | D8: ='InfoBase 6B2a'!D25 -> EPSSMU S.R.Ltda. | E8: =VLOOKUP(D8,'InfoBase 6B2a'!$D$19:$G$68,2,FALSE) -> 0 | F8: =VLOOKUP(D8,'InfoBase 6B2a'!$D$19:$G$68,4,FALSE)/1000 -> 15.152
B9: ='InfoBase 6B2a'!B53 -> 35 | C9: ='InfoBase 6B2a'!C53 -> Amazonas | D9: ='InfoBase 6B2a'!D53 -> EMAPAB S.R.LTDA. | E9: =VLOOKUP(D9,'InfoBase 6B2a'!$D$19:$G$68,2,FALSE) -> 0 | F9: =VLOOKUP(D9,'InfoBase 6B2a'!$D$19:$G$68,4,FALSE)/1000 -> 16.257
B10: ='InfoBase 6B2a'!B32 -> 14 | C10: ='InfoBase 6B2a'!C32 -> Áncash | D10: ='InfoBase 6B2a'!D32 -> SEDACHIMBOTE S.A. | E10: =VLOOKUP(D10,'InfoBase 6B2a'!$D$19:$G$68,2,FALSE) -> 0.4373692153 | F10: =VLOOKUP(D10,'InfoBase 6B2a'!$D$19:$G$68,4,FALSE)/1000 -> 262.967
B11: ='InfoBase 6B2a'!B51 -> 33 | C11: ='InfoBase 6B2a'!C51 -> Áncash | D11: ='InfoBase 6B2a'!D51 -> EPS CHAVIN S.A. | E11: =VLOOKUP(D11,'InfoBase 6B2a'!$D$19:$G$68,2,FALSE) -> 0 | F11: =VLOOKUP(D11,'InfoBase 6B2a'!$D$19:$G$68,4,FALSE)/1000 -> 57.755
B12: ='InfoBase 6B2a'!B61 -> 43 | C12: ='InfoBase 6B2a'!C61 -> Apurímac | D12: ='InfoBase 6B2a'!D61 -> EMUSAP ABANCAY S.A. | E12: =VLOOKUP(D12,'InfoBase 6B2a'!$D$19:$G$68,2,FALSE) -> 0 | F12: =VLOOKUP(D12,'InfoBase 6B2a'!$D$19:$G$68,4,FALSE)/1000 -> 29.959
B13: ='InfoBase 6B2a'!B62 -> 44 | C13: ='InfoBase 6B2a'!C62 -> Apurímac | D13: ='InfoBase 6B2a'!D62 -> EMSAP CHANKA S.R.L. | E13: =VLOOKUP(D13,'InfoBase 6B2a'!$D$19:$G$68,2,FALSE) -> 0 | F13: =VLOOKUP(D13,'InfoBase 6B2a'!$D$19:$G$68,4,FALSE)/1000 -> 0
B14: ='InfoBase 6B2a'!B68 -> 51 | C14: ='InfoBase 6B2a'!C68 -> Arequipa | D14: ='InfoBase 6B2a'!D68 -> SEDAPAR S.R.L. (Rioja) | E14: =VLOOKUP(D14,'InfoBase 6B2a'!$D$19:$G$68,2,FALSE) -> 0 | F14: =VLOOKUP(D14,'InfoBase 6B2a'!$D$19:$G$68,4,FALSE)/1000 -> 0
B15: ='InfoBase 6B2a'!B33 -> 15 | C15: ='InfoBase 6B2a'!C33 -> Ayacucho | D15: ='InfoBase 6B2a'!D33 -> EPSASA | E15: =VLOOKUP(D15,'InfoBase 6B2a'!$D$19:$G$68,2,FALSE) -> 0 | F15: =VLOOKUP(D15,'InfoBase 6B2a'!$D$19:$G$68,4,FALSE)/1000 -> 88.322
B16: ='InfoBase 6B2a'!B29 -> 11 | C16: ='InfoBase 6B2a'!C29 -> Cajamarca | D16: ='InfoBase 6B2a'!D29 -> SEDACAJ S.A. | E16: =VLOOKUP(D16,'InfoBase 6B2a'!$D$19:$G$68,2,FALSE) -> 0.4770720268 | F16: =VLOOKUP(D16,'InfoBase 6B2a'!$D$19:$G$68,4,FALSE)/1000 -> 83.435
B17: ='InfoBase 6B2a'!B63 -> 45 | C17: ='InfoBase 6B2a'!C63 -> Cajamarca | D17: ='InfoBase 6B2a'!D63 -> EPS MARAÑON S.R.L. | E17: =VLOOKUP(D17,'InfoBase 6B2a'!$D$19:$G$68,2,FALSE) -> 0 | F17: =VLOOKUP(D17,'InfoBase 6B2a'!$D$19:$G$68,4,FALSE)/1000 -> 0
B18: ='InfoBase 6B2a'!B27 -> 9 | C18: ='InfoBase 6B2a'!C27 -> Cerro de Pasco | D18: ='InfoBase 6B2a'!D27 -> EMAPA Pasco S.A. | E18: =VLOOKUP(D18,'InfoBase 6B2a'!$D$19:$G$68,2,FALSE) -> 0 | F18: =VLOOKUP(D18,'InfoBase 6B2a'!$D$19:$G$68,4,FALSE)/1000 -> 0
B19: ='InfoBase 6B2a'!B49 -> 31 | C19: ='InfoBase 6B2a'!C49 -> Cusco | D19: ='InfoBase 6B2a'!D49 -> SEDACUSCO S.A. | E19: =VLOOKUP(D19,'InfoBase 6B2a'!$D$19:$G$68,2,FALSE) -> 0.4021003892 | F19: =VLOOKUP(D19,'InfoBase 6B2a'!$D$19:$G$68,4,FALSE)/1000 -> 228.214
B20: ='InfoBase 6B2a'!B52 -> 34 | C20: ='InfoBase 6B2a'!C52 -> Cusco | D20: ='InfoBase 6B2a'!D52 -> EMAQ S.R.LTDA. | E20: =VLOOKUP(D20,'InfoBase 6B2a'!$D$19:$G$68,2,FALSE) -> 0 | F20: =VLOOKUP(D20,'InfoBase 6B2a'!$D$19:$G$68,4,FALSE)/1000 -> 9.701
B21: ='InfoBase 6B2a'!B56 -> 38 | C21: ='InfoBase 6B2a'!C56 -> Cusco | D21: ='InfoBase 6B2a'!D56 -> EMPSSAPAL S.A. | E21: =VLOOKUP(D21,'InfoBase 6B2a'!$D$19:$G$68,2,FALSE) -> 0 | F21: =VLOOKUP(D21,'InfoBase 6B2a'!$D$19:$G$68,4,FALSE)/1000 -> 29.934
B22: ='InfoBase 6B2a'!B65 -> 47 | C22: ='InfoBase 6B2a'!C65 -> Cusco | D22: ='InfoBase 6B2a'!D65 -> EMSAPA CALCA S.R.L. | E22: =VLOOKUP(D22,'InfoBase 6B2a'!$D$19:$G$68,2,FALSE) -> 0 | F22: =VLOOKUP(D22,'InfoBase 6B2a'!$D$19:$G$68,4,FALSE)/1000 -> 0
B23: ='InfoBase 6B2a'!B39 -> 21 | C23: ='InfoBase 6B2a'!C39 -> Huancavelica | D23: ='InfoBase 6B2a'!D39 -> EMAPA HUANCAVELICA S.A.C | E23: =VLOOKUP(D23,'InfoBase 6B2a'!$D$19:$G$68,2,FALSE) -> 0 | F23: =VLOOKUP(D23,'InfoBase 6B2a'!$D$19:$G$68,4,FALSE)/1000 -> 20.416
B24: ='InfoBase 6B2a'!B20 -> 2 | C24: ='InfoBase 6B2a'!C20 -> Huánuco | D24: ='InfoBase 6B2a'!D20 -> SEDA Huánuco S.A. | E24: =VLOOKUP(D24,'InfoBase 6B2a'!$D$19:$G$68,2,FALSE) -> 0 | F24: =VLOOKUP(D24,'InfoBase 6B2a'!$D$19:$G$68,4,FALSE)/1000 -> 58.146
B25: ='InfoBase 6B2a'!B28 -> 10 | C25: ='InfoBase 6B2a'!C28 -> Ica | D25: ='InfoBase 6B2a'!D28 -> EMAPISCO S.A. | E25: =VLOOKUP(D25,'InfoBase 6B2a'!$D$19:$G$68,2,FALSE) -> 0 | F25: =VLOOKUP(D25,'InfoBase 6B2a'!$D$19:$G$68,4,FALSE)/1000 -> 51.768
B26: ='InfoBase 6B2a'!B31 -> 13 | C26: ='InfoBase 6B2a'!C31 -> Ica | D26: ='InfoBase 6B2a'!D31 -> EMAPAVIGS S.A.C. | E26: =VLOOKUP(D26,'InfoBase 6B2a'!$D$19:$G$68,2,FALSE) -> 0 | F26: =VLOOKUP(D26,'InfoBase 6B2a'!$D$19:$G$68,4,FALSE)/1000 -> 28.268
B27: ='InfoBase 6B2a'!B36 -> 18 | C27: ='InfoBase 6B2a'!C36 -> Ica | D27: ='InfoBase 6B2a'!D36 -> SEMAPACH S.A. | E27: =VLOOKUP(D27,'InfoBase 6B2a'!$D$19:$G$68,2,FALSE) -> 1 | F27: =VLOOKUP(D27,'InfoBase 6B2a'!$D$19:$G$68,4,FALSE)/1000 -> 89.766
B28: ='InfoBase 6B2a'!B55 -> 37 | C28: ='InfoBase 6B2a'!C55 -> Ica | D28: ='InfoBase 6B2a'!D55 -> EMAPICA S.A. | E28: =VLOOKUP(D28,'InfoBase 6B2a'!$D$19:$G$68,2,FALSE) -> 0.5175960062 | F28: =VLOOKUP(D28,'InfoBase 6B2a'!$D$19:$G$68,4,FALSE)/1000 -> 106.835
B29: ='InfoBase 6B2a'!B37 -> 19 | C29: ='InfoBase 6B2a'!C37 -> Junín | D29: ='InfoBase 6B2a'!D37 -> EPS Selva Central S.A. | E29: =VLOOKUP(D29,'InfoBase 6B2a'!$D$19:$G$68,2,FALSE) -> 0.1809999178 | F29: =VLOOKUP(D29,'InfoBase 6B2a'!$D$19:$G$68,4,FALSE)/1000 -> 44.657
B30: ='InfoBase 6B2a'!B57 -> 39 | C30: ='InfoBase 6B2a'!C57 -> Junín | D30: ='InfoBase 6B2a'!D57 -> EPS SIERRA CENTRAL S.R.L. | E30: =VLOOKUP(D30,'InfoBase 6B2a'!$D$19:$G$68,2,FALSE) -> 0 | F30: =VLOOKUP(D30,'InfoBase 6B2a'!$D$19:$G$68,4,FALSE)/1000 -> 30.832
B31: ='InfoBase 6B2a'!B60 -> 42 | C31: ='InfoBase 6B2a'!C60 -> Junín | D31: ='InfoBase 6B2a'!D60 -> EPS MANTARO S.A. | E31: =VLOOKUP(D31,'InfoBase 6B2a'!$D$19:$G$68,2,FALSE) -> 0 | F31: =VLOOKUP(D31,'InfoBase 6B2a'!$D$19:$G$68,4,FALSE)/1000 -> 45.737
B32: ='InfoBase 6B2a'!B64 -> 46 | C32: ='InfoBase 6B2a'!C64 -> Junín | D32: ='InfoBase 6B2a'!D64 -> SEDAM HUANCAYO S.A.C. | E32: =VLOOKUP(D32,'InfoBase 6B2a'!$D$19:$G$68,2,FALSE) -> 0 | F32: =VLOOKUP(D32,'InfoBase 6B2a'!$D$19:$G$68,4,FALSE)/1000 -> 0
B33: ='InfoBase 6B2a'!B67 -> 50 | C33: ='InfoBase 6B2a'!C67 -> Junín | D33: ='InfoBase 6B2a'!D67 -> EMSAPA YAULI S.RL.L. | E33: =VLOOKUP(D33,'InfoBase 6B2a'!$D$19:$G$68,2,FALSE) -> 0 | F33: =VLOOKUP(D33,'InfoBase 6B2a'!$D$19:$G$68,4,FALSE)/1000 -> 0
B34: ='InfoBase 6B2a'!B46 -> 28 | C34: ='InfoBase 6B2a'!C46 -> La Libertad | D34: ='InfoBase 6B2a'!D46 -> SEDALIB S.A. | E34: =VLOOKUP(D34,'InfoBase 6B2a'!$D$19:$G$68,2,FALSE) -> 0.8773103943 | F34: =VLOOKUP(D34,'InfoBase 6B2a'!$D$19:$G$68,4,FALSE)/1000 -> 522.462
B35: ='InfoBase 6B2a'!B47 -> 29 | C35: ='InfoBase 6B2a'!C47 -> Lambayeque | D35: ='InfoBase 6B2a'!D47 -> EPSEL S.A. | E35: =VLOOKUP(D35,'InfoBase 6B2a'!$D$19:$G$68,2,FALSE) -> 0.702903606 | F35: =VLOOKUP(D35,'InfoBase 6B2a'!$D$19:$G$68,4,FALSE)/1000 -> 524.691
B36: ='InfoBase 6B2a'!B23 -> 5 | C36: ='InfoBase 6B2a'!C23 -> Lima | D36: ='InfoBase 6B2a'!D23 -> EMAPA Cañete S.A. | E36: =VLOOKUP(D36,'InfoBase 6B2a'!$D$19:$G$68,2,FALSE) -> 0.007475936066 | F36: =VLOOKUP(D36,'InfoBase 6B2a'!$D$19:$G$68,4,FALSE)/1000 -> 71.055
B37: ='InfoBase 6B2a'!B42 -> 24 | C37: ='InfoBase 6B2a'!C42 -> Lima | D37: ='InfoBase 6B2a'!D42 -> EMAPA HUARAL S.A. | E37: =VLOOKUP(D37,'InfoBase 6B2a'!$D$19:$G$68,2,FALSE) -> 0 | F37: =VLOOKUP(D37,'InfoBase 6B2a'!$D$19:$G$68,4,FALSE)/1000 -> 35.231
B38: ='InfoBase 6B2a'!B43 -> 25 | C38: ='InfoBase 6B2a'!C43 -> Lima | D38: ='InfoBase 6B2a'!D43 -> EMAPA HUACHO S.A. | E38: =VLOOKUP(D38,'InfoBase 6B2a'!$D$19:$G$68,2,FALSE) -> 0 | F38: =VLOOKUP(D38,'InfoBase 6B2a'!$D$19:$G$68,4,FALSE)/1000 -> 71.687
B39: ='InfoBase 6B2a'!B44 -> 26 | C39: ='InfoBase 6B2a'!C44 -> Lima | D39: ='InfoBase 6B2a'!D44 -> SEDAPAL S.A. | E39: =VLOOKUP(D39,'InfoBase 6B2a'!$D$19:$G$68,2,FALSE) -> 0.05790968364 | F39: =VLOOKUP(D39,'InfoBase 6B2a'!$D$19:$G$68,4,FALSE)/1000 -> 5639.805
B40: ='InfoBase 6B2a'!B54 -> 36 | C40: ='InfoBase 6B2a'!C54 -> Lima | D40: ='InfoBase 6B2a'!D54 -> SEMAPA BARRANCA S.A. | E40: =VLOOKUP(D40,'InfoBase 6B2a'!$D$19:$G$68,2,FALSE) -> 0 | F40: =VLOOKUP(D40,'InfoBase 6B2a'!$D$19:$G$68,4,FALSE)/1000 -> 46.594
B41: ='InfoBase 6B2a'!B22 -> 4 | C41: ='InfoBase 6B2a'!C22 -> Loreto | D41: ='InfoBase 6B2a'!D22 -> EPS SEDALORETO S.A. | E41: =VLOOKUP(D41,'InfoBase 6B2a'!$D$19:$G$68,2,FALSE) -> 0 | F41: =VLOOKUP(D41,'InfoBase 6B2a'!$D$19:$G$68,4,FALSE)/1000 -> 189.431
B42: ='InfoBase 6B2a'!B35 -> 17 | C42: ='InfoBase 6B2a'!C35 -> Madre de Dios | D42: ='InfoBase 6B2a'!D35 -> EMAPAT S.R.Ltda. | E42: =VLOOKUP(D42,'InfoBase 6B2a'!$D$19:$G$68,2,FALSE) -> 0 | F42: =VLOOKUP(D42,'InfoBase 6B2a'!$D$19:$G$68,4,FALSE)/1000 -> 13.888
B43: ='InfoBase 6B2a'!B40 -> 22 | C43: ='InfoBase 6B2a'!C40 -> Moquegua | D43: ='InfoBase 6B2a'!D40 -> EPS MOQUEGUA S.A. | E43: =VLOOKUP(D43,'InfoBase 6B2a'!$D$19:$G$68,2,FALSE) -> 0.7042056493 | F43: =VLOOKUP(D43,'InfoBase 6B2a'!$D$19:$G$68,4,FALSE)/1000 -> 30.81
B44: ='InfoBase 6B2a'!B45 -> 27 | C44: ='InfoBase 6B2a'!C45 -> Moquegua | D44: ='InfoBase 6B2a'!D45 -> EPS ILO S.A. | E44: =VLOOKUP(D44,'InfoBase 6B2a'!$D$19:$G$68,2,FALSE) -> 0.6306861962 | F44: =VLOOKUP(D44,'InfoBase 6B2a'!$D$19:$G$68,4,FALSE)/1000 -> 38.067
B45: ='InfoBase 6B2a'!B50 -> 32 | C45: ='InfoBase 6B2a'!C50 -> Piura | D45: ='InfoBase 6B2a'!D50 -> EPS GRAU S.A. | E45: =VLOOKUP(D45,'InfoBase 6B2a'!$D$19:$G$68,2,FALSE) -> 0.5758525829 | F45: =VLOOKUP(D45,'InfoBase 6B2a'!$D$19:$G$68,4,FALSE)/1000 -> 578.826
B46: ='InfoBase 6B2a'!B24 -> 6 | C46: ='InfoBase 6B2a'!C24 -> Puno | D46: ='InfoBase 6B2a'!D24 -> EMSA Puno S.A. | E46: =VLOOKUP(D46,'InfoBase 6B2a'!$D$19:$G$68,2,FALSE) -> 0.7493477008 | F46: =VLOOKUP(D46,'InfoBase 6B2a'!$D$19:$G$68,4,FALSE)/1000 -> 75.823
B47: ='InfoBase 6B2a'!B41 -> 23 | C47: ='InfoBase 6B2a'!C41 -> Puno | D47: ='InfoBase 6B2a'!D41 -> EMAPA Y S.R.L. | E47: =VLOOKUP(D47,'InfoBase 6B2a'!$D$19:$G$68,2,FALSE) -> 0 | F47: =VLOOKUP(D47,'InfoBase 6B2a'!$D$19:$G$68,4,FALSE)/1000 -> 6.212
B48: ='InfoBase 6B2a'!B58 -> 40 | C48: ='InfoBase 6B2a'!C58 -> Puno | D48: ='InfoBase 6B2a'!D58 -> EPS NOR PUNO S.A. | E48: =VLOOKUP(D48,'InfoBase 6B2a'!$D$19:$G$68,2,FALSE) -> 0 | F48: =VLOOKUP(D48,'InfoBase 6B2a'!$D$19:$G$68,4,FALSE)/1000 -> 0
B49: ='InfoBase 6B2a'!B59 -> 41 | C49: ='InfoBase 6B2a'!C59 -> Puno | D49: ='InfoBase 6B2a'!D59 -> SEDAJULIACA S.A. | E49: =VLOOKUP(D49,'InfoBase 6B2a'!$D$19:$G$68,2,FALSE) -> 0.800712972 | F49: =VLOOKUP(D49,'InfoBase 6B2a'!$D$19:$G$68,4,FALSE)/1000 -> 111.414
B50: ='InfoBase 6B2a'!B66 -> 48 | C50: ='InfoBase 6B2a'!C66 -> Puno | D50: ='InfoBase 6B2a'!D66 -> EPS AGUAS DEL ALTIPLANO | E50: =VLOOKUP(D50,'InfoBase 6B2a'!$D$19:$G$68,2,FALSE) -> 0 | F50: =VLOOKUP(D50,'InfoBase 6B2a'!$D$19:$G$68,4,FALSE)/1000 -> 0
B51: ='InfoBase 6B2a'!B34 -> 16 | C51: ='InfoBase 6B2a'!C34 -> San Martín | D51: ='InfoBase 6B2a'!D34 -> EMAPA San Martín S.A. | E51: =VLOOKUP(D51,'InfoBase 6B2a'!$D$19:$G$68,2,FALSE) -> 0 | F51: =VLOOKUP(D51,'InfoBase 6B2a'!$D$19:$G$68,4,FALSE)/1000 -> 85.242
B52: ='InfoBase 6B2a'!B38 -> 20 | C52: ='InfoBase 6B2a'!C38 -> San Martín | D52: ='InfoBase 6B2a'!D38 -> EMAPA MOYOBAMBA S.R.LTDA. | E52: =VLOOKUP(D52,'InfoBase 6B2a'!$D$19:$G$68,2,FALSE) -> 0.2267658395 | F52: =VLOOKUP(D52,'InfoBase 6B2a'!$D$19:$G$68,4,FALSE)/1000 -> 31.616
B53: ='InfoBase 6B2a'!B48 -> 30 | C53: ='InfoBase 6B2a'!C48 -> San Martín | D53: ='InfoBase 6B2a'!D48 -> SEDAPAR S.A. | E53: =VLOOKUP(D53,'InfoBase 6B2a'!$D$19:$G$68,2,FALSE) -> 0.1356548959 | F53: =VLOOKUP(D53,'InfoBase 6B2a'!$D$19:$G$68,4,FALSE)/1000 -> 713.831
B54: ='InfoBase 6B2a'!B30 -> 12 | C54: ='InfoBase 6B2a'!C30 -> Tacna | D54: ='InfoBase 6B2a'!D30 -> EPS TACNA S.A. | E54: =VLOOKUP(D54,'InfoBase 6B2a'!$D$19:$G$68,2,FALSE) -> 0.9580543712 | F54: =VLOOKUP(D54,'InfoBase 6B2a'!$D$19:$G$68,4,FALSE)/1000 -> 181.15645
B55: ='InfoBase 6B2a'!B26 -> 8 | C55: ='InfoBase 6B2a'!C26 -> Tumbes | D55: ='InfoBase 6B2a'!D26 -> Aguas de Tumbes | E55: =VLOOKUP(D55,'InfoBase 6B2a'!$D$19:$G$68,2,FALSE) -> 0.2658713461 | F55: =VLOOKUP(D55,'InfoBase 6B2a'!$D$19:$G$68,4,FALSE)/1000 -> 58.939
B56: ='InfoBase 6B2a'!B21 -> 3 | C56: ='InfoBase 6B2a'!C21 -> Ucayali | D56: ='InfoBase 6B2a'!D21 -> EMAPACOP S.A. | E56: =VLOOKUP(D56,'InfoBase 6B2a'!$D$19:$G$68,2,FALSE) -> 0 | F56: =VLOOKUP(D56,'InfoBase 6B2a'!$D$19:$G$68,4,FALSE)/1000 -> 82.287
F57: =SUM(F7:F56) -> 10423.27045
C92: ='Prop. y Fact. de conversión'!C36*365/'Prop. y Fact. de conversión'!C17*1000 -> 18250 | D92: kg/1000 personas.año
C97: =SUM(C98:C101) -> 808436 | D97: =SUM(D98:D101) -> 259098
C98: 438834 | D98: 93349 | E98: 21.27
C99: 273868 | D99: 146592 | E99: 53.53
C100: 65654 | D100: 10989 | E100: 16.74
C101: 30080 | D101: 8168 | E101: 27.16
B114: Demanda Bioquímica de Oxígeno (DBO)
B116: DBO5
E155: =AVERAGE('InfoBase 6B2a'!E19:E68) -> 0.2206338348 | F155: =AVERAGE('InfoBase 6B2a'!#REF!) -> 
G157: =AVERAGE('InfoBase 6B2a'!#REF!) ->  | H157: =AVERAGE('InfoBase 6B2a'!#REF!) -> 
I181: =AVERAGE('InfoBase 6B2a'!#REF!) -> 

Sheet Prop. y Fact. de conversión
B2: Relación de metano/carbono y oxido nitroso/nitrógeno
B4: Peso atómico del carbono | C4: 12
B5: Peso atómico del hidrógeno | C5: 1
B6: Peso atómico del nitrógeno | C6: 14
B7: Peso atómico del oxígeno | C7: 16
B8: Fuente: Tabla periódica de los elementos
B10: Relación CH4/C | C10: =(C4+C5*4)/C4 -> 1.333333333
B13: Conversión de unidades
B15: Masa
B16: 1 tonelada | C16: 1000 | D16: kg
B17: 1 kilogramo | C17: 1000 | D17: g
B18: 1 tonelada | C18: =C16*C17 -> 1000000 | D18: g
B20: Prefijo | C20: Simbolo | D20: Factor
B21: deca | C21: da | D21: =10^1 -> 10
B22: hecto | C22: h | D22: =10^2 -> 100
B23: kilo | C23: k | D23: =10^3 -> 1000
B24: mega | C24: M | D24: =10^6 -> 1000000
B25: giga | C25: G | D25: =10^9 -> 1000000000
B26: tera | C26: T | D26: =10^12 -> 1000000000000
B27: Fuente: Sistema Internacional - Guide for the Use of the International System of Units (SI) http://physics.nist.gov/cuu/pdf/sp811.pdf
B30: Volumen
B31: 1 centimetro cúbico | C31: =1/1000 -> 0.001 | D31: l
B32: Fuente: http://www.metric-conversions.org/es/volumen/tabla-de-conversion-de-centimetros-cubicos-a-litros.htm
B34: Demanda Bioquímica de Oxígeno (DBO)
B36: DBO5 | C36: 50 | D36: g/hab.día
B43: Densidades de bebidas
B45: Densidad del vino | C45: =(996+997)/2 -> 996.5 | D45: g/l
B46: Densidad de cerveza | C46: 1010 | D46: g/cm3
F51: http://www.inti.gob.ar/interlaboratorios/informes/2010/alimentos/2010_informe_final_vinos.pdf
F68: http://www.atpplleal.com/Pujat/file/DENSIDAD%20Y%20PESO%20ESPECIFICO.pdf

Sheet FE 6B2
B2: Factor de conversión de metano para el sistema de manejo (FCM)
B4: FCM | C4: 0.8
B5: Fuente: GL 1996, cuadro 6-7, página 6.20
B7: Capacidad máxima de producción de metano (Bo)
B9: Bo | C9: 0.6 | D9: kg CH4/kg DBO
B10: Fuente: OBP 2000, página 5.18
B12: Fracción de nitrógeno en la proteína
B14: FracNPR | C14: 0.16 | D14: Kg N/Kg proteína
B15: Fuente: IPCC 1996, página 6.25
B17: Factor de emisión por excretas humanas
B19: EF6 | C19: 0.01 | D19: kgCH4/kgDBO
B20: Fuente: IPCC 1996, página 6.25

Sheet Emisiones GEI 6B2a
B2: Estimación de metano generado por el tratamiento de aguas residuales domésticas
B4: Sector | C4: Desechos
B5: Categoría | C5: Aguas residuales domésticas
B6: Código de categoría | C6: 6B2a
B10: A | C10: B | D10: C | E10: D | F10: E | G10: F | H10: G | I10: H | J10: I | K10: J | L10: K | M10: L | N10: M | O10: N | P10: O
B11: Región - EPS | C11: Población con alcantarillado (1,000 personas) | D11: Componente orgánico degradable (kg DBO/1000 personas/año) | E11: Fracción del componente orgánico degradable removido como lodo | F11: Total del componente orgánico del agua residual doméstica residual/comercial (kg DBO/año) | G11: Total del componente orgánico del lodo doméstico/comercial (kg DBO/año) | H11: Sistemas de manejo de aguas residuales | I11: Fracción de agua residual tratada por el sistema de manejo | J11: Factor de conversión de metano para el sistema de manejo | K11: Fracción real de metano | L11: Capacidad máxima de producción de metano (kg CH4/kg DBO) | M11: Factor de emisión para aguas residuales domésticas (kg CH4/kg DBO) | N11: Emisiones de metano sin recuperación o quema (Kg CH4) | O11: Metano recuperado o quemado (Kg CH4) | P11: Emisiones netas de metano (Gg CH4)
F12: E = [B x C x (1-D)] | G12: F = (B x C x D) | K12: J = (H x I ) | M12: L = (J x K) | N12: M = (E x L) | P12: K = (M - N)/1 000 000
B13: ='InfoProc 6B2a'!C7& "- " & 'InfoBase 6B2a'!D19 -> Amazonas- EMUSAP Amazonas | C13: ='InfoProc 6B2a'!F7 -> 16.082 | D13: ='InfoProc 6B2a'!$C$92 -> 18250 | E13: 0 | F13: =(C13*D13*(1-E13)) -> 293496.5 | G13: =C13*D13*E13 -> 0 | I13: ='InfoProc 6B2a'!E7 -> 0 | J13: ='FE 6B2'!C4 -> 0.8 | K13: =I13*J13 -> 0 | L13: ='FE 6B2'!C9 -> 0.6 | M13: =K13*L13 -> 0 | N13: =F13*M13 -> 0 | P13: =(N13-O13)/1000000 -> 0
B14: ='InfoProc 6B2a'!C8& "- " & 'InfoBase 6B2a'!D20 -> Amazonas- SEDA Huánuco S.A. | C14: ='InfoProc 6B2a'!F8 -> 15.152 | D14: ='InfoProc 6B2a'!$C$92 -> 18250 | E14: 0 | F14: =(C14*D14*(1-E14)) -> 276524 | G14: =C14*D14*E14 -> 0 | I14: ='InfoProc 6B2a'!E8 -> 0 | J14: ='FE 6B2'!C4 -> 0.8 | K14: =I14*J14 -> 0 | L14: ='FE 6B2'!C9 -> 0.6 | M14: 0 | N14: 0 | P14: =(N14-O14)/1000000 -> 0
B15: ='InfoProc 6B2a'!C9& "- " & 'InfoBase 6B2a'!D21 -> Amazonas- EMAPACOP S.A. | C15: ='InfoProc 6B2a'!F9 -> 16.257 | D15: ='InfoProc 6B2a'!$C$92 -> 18250 | E15: 0 | F15: 296690.25 | G15: 0 | I15: ='InfoProc 6B2a'!E9 -> 0 | J15: ='FE 6B2'!C4 -> 0.8 | K15: 0 | L15: ='FE 6B2'!C9 -> 0.6 | M15: 0 | N15: 0 | P15: 0
B16: ='InfoProc 6B2a'!C10& "- " & 'InfoBase 6B2a'!D22 -> Áncash- EPS SEDALORETO S.A. | C16: ='InfoProc 6B2a'!F10 -> 262.967 | D16: ='InfoProc 6B2a'!$C$92 -> 18250 | E16: 0 | F16: 4799147.75 | G16: 0 | I16: ='InfoProc 6B2a'!E10 -> 0.4373692153 | J16: ='FE 6B2'!C4 -> 0.8 | K16: 0.3498953722 | L16: ='FE 6B2'!C9 -> 0.6 | M16: 0.2099372233 | N16: =F16*M16 -> 1007519.753 | P16: =(N16-O16)/1000000 -> 1.007519753
B17: ='InfoProc 6B2a'!C11& "- " & 'InfoBase 6B2a'!D23 -> Áncash- EMAPA Cañete S.A. | C17: ='InfoProc 6B2a'!F11 -> 57.755 | D17: ='InfoProc 6B2a'!$C$92 -> 18250 | E17: 0 | F17: 1054028.75 | G17: 0 | I17: ='InfoProc 6B2a'!E11 -> 0 | J17: ='FE 6B2'!C4 -> 0.8 | K17: 0 | L17: ='FE 6B2'!C9 -> 0.6 | M17: 0 | N17: 0 | P17: 0
B18: ='InfoProc 6B2a'!C12& "- " & 'InfoBase 6B2a'!D24 -> Apurímac- EMSA Puno S.A. | C18: ='InfoProc 6B2a'!F12 -> 29.959 | D18: ='InfoProc 6B2a'!$C$92 -> 18250 | E18: 0 | F18: 546751.75 | G18: 0 | I18: ='InfoProc 6B2a'!E12 -> 0 | J18: ='FE 6B2'!C4 -> 0.8 | K18: 0 | L18: ='FE 6B2'!C9 -> 0.6 | M18: 0 | N18: 0 | P18: 0
B19: ='InfoProc 6B2a'!C13& "- " & 'InfoBase 6B2a'!D25 -> Apurímac- EPSSMU S.R.Ltda. | C19: ='InfoProc 6B2a'!F13 -> 0 | D19: ='InfoProc 6B2a'!$C$92 -> 18250 | E19: 0 | F19: 0 | G19: 0 | I19: ='InfoProc 6B2a'!E13 -> 0 | J19: ='FE 6B2'!C4 -> 0.8 | K19: 0 | L19: ='FE 6B2'!C9 -> 0.6 | M19: 0 | N19: 0 | P19: 0
B20: ='InfoProc 6B2a'!C14& "- " & 'InfoBase 6B2a'!D26 -> Arequipa- Aguas de Tumbes | C20: ='InfoProc 6B2a'!F14 -> 0 | D20: ='InfoProc 6B2a'!$C$92 -> 18250 | E20: 0 | F20: 0 | G20: 0 | I20: ='InfoProc 6B2a'!E14 -> 0 | J20: ='FE 6B2'!C4 -> 0.8 | K20: 0 | L20: ='FE 6B2'!C9 -> 0.6 | M20: 0 | N20: 0 | P20: 0
B21: ='InfoProc 6B2a'!C15& "- " & 'InfoBase 6B2a'!D27 -> Ayacucho- EMAPA Pasco S.A. | C21: ='InfoProc 6B2a'!F15 -> 88.322 | D21: ='InfoProc 6B2a'!$C$92 -> 18250 | E21: 0 | F21: 1611876.5 | G21: 0 | I21: ='InfoProc 6B2a'!E15 -> 0 | J21: ='FE 6B2'!C4 -> 0.8 | K21: 0 | L21: ='FE 6B2'!C9 -> 0.6 | M21: 0 | N21: 0 | P21: 0
B22: ='InfoProc 6B2a'!C16& "- " & 'InfoBase 6B2a'!D28 -> Cajamarca- EMAPISCO S.A. | C22: ='InfoProc 6B2a'!F16 -> 83.435 | D22: ='InfoProc 6B2a'!$C$92 -> 18250 | E22: 0 | F22: 1522688.75 | G22: 0 | I22: ='InfoProc 6B2a'!E16 -> 0.4770720268 | J22: ='FE 6B2'!C4 -> 0.8 | K22: 0.3816576214 | L22: ='FE 6B2'!C9 -> 0.6 | M22: 0.2289945728 | N22: 348687.4599 | P22: 0.3486874599
B23: ='InfoProc 6B2a'!C17& "- " & 'InfoBase 6B2a'!D29 -> Cajamarca- SEDACAJ S.A. | C23: ='InfoProc 6B2a'!F17 -> 0 | D23: ='InfoProc 6B2a'!$C$92 -> 18250 | E23: 0 | F23: 0 | G23: 0 | I23: ='InfoProc 6B2a'!E17 -> 0 | J23: ='FE 6B2'!C4 -> 0.8 | K23: 0 | L23: ='FE 6B2'!C9 -> 0.6 | M23: 0 | N23: 0 | P23: 0
B24: ='InfoProc 6B2a'!C18& "- " & 'InfoBase 6B2a'!D30 -> Cerro de Pasco- EPS TACNA S.A. | C24: ='InfoProc 6B2a'!F18 -> 0 | D24: ='InfoProc 6B2a'!$C$92 -> 18250 | E24: 0 | F24: 0 | G24: 0 | I24: ='InfoProc 6B2a'!E18 -> 0 | J24: ='FE 6B2'!C4 -> 0.8 | K24: 0 | L24: ='FE 6B2'!C9 -> 0.6 | M24: 0 | N24: 0 | P24: 0
B25: ='InfoProc 6B2a'!C19& "- " & 'InfoBase 6B2a'!D31 -> Cusco- EMAPAVIGS S.A.C. | C25: ='InfoProc 6B2a'!F19 -> 228.214 | D25: ='InfoProc 6B2a'!$C$92 -> 18250 | E25: 0 | F25: 4164905.5 | G25: 0 | I25: ='InfoProc 6B2a'!E19 -> 0.4021003892 | J25: ='FE 6B2'!C4 -> 0.8 | K25: 0.3216803114 | L25: ='FE 6B2'!C9 -> 0.6 | M25: 0.1930081868 | N25: 803860.8589 | P25: 0.8038608589
B26: ='InfoProc 6B2a'!C20& "- " & 'InfoBase 6B2a'!D32 -> Cusco- SEDACHIMBOTE S.A. | C26: ='InfoProc 6B2a'!F20 -> 9.701 | D26: ='InfoProc 6B2a'!$C$92 -> 18250 | E26: 0 | F26: 177043.25 | G26: 0 | I26: ='InfoProc 6B2a'!E20 -> 0 | J26: ='FE 6B2'!C4 -> 0.8 | K26: 0 | L26: ='FE 6B2'!C9 -> 0.6 | M26: 0 | N26: 0 | P26: 0
B27: ='InfoProc 6B2a'!C21& "- " & 'InfoBase 6B2a'!D33 -> Cusco- EPSASA | C27: ='InfoProc 6B2a'!F21 -> 29.934 | D27: ='InfoProc 6B2a'!$C$92 -> 18250 | E27: 0 | F27: 546295.5 | G27: 0 | I27: ='InfoProc 6B2a'!E21 -> 0 | J27: ='FE 6B2'!C4 -> 0.8 | K27: 0 | L27: ='FE 6B2'!C9 -> 0.6 | M27: 0 | N27: 0 | P27: 0
B28: ='InfoProc 6B2a'!C22& "- " & 'InfoBase 6B2a'!D34 -> Cusco- EMAPA San Martín S.A. | C28: ='InfoProc 6B2a'!F22 -> 0 | D28: ='InfoProc 6B2a'!$C$92 -> 18250 | E28: 0 | F28: 0 | G28: 0 | I28: ='InfoProc 6B2a'!E22 -> 0 | J28: ='FE 6B2'!C4 -> 0.8 | K28: 0 | L28: ='FE 6B2'!C9 -> 0.6 | M28: 0 | N28: 0 | P28: 0
B29: ='InfoProc 6B2a'!C23& "- " & 'InfoBase 6B2a'!D35 -> Huancavelica- EMAPAT S.R.Ltda. | C29: ='InfoProc 6B2a'!F23 -> 20.416 | D29: ='InfoProc 6B2a'!$C$92 -> 18250 | E29: 0 | F29: 372592 | G29: 0 | I29: ='InfoProc 6B2a'!E23 -> 0 | J29: ='FE 6B2'!C4 -> 0.8 | K29: 0 | L29: ='FE 6B2'!C9 -> 0.6 | M29: 0 | N29: 0 | P29: 0
B30: ='InfoProc 6B2a'!C24& "- " & 'InfoBase 6B2a'!D36 -> Huánuco- SEMAPACH S.A. | C30: ='InfoProc 6B2a'!F24 -> 58.146 | D30: ='InfoProc 6B2a'!$C$92 -> 18250 | E30: 0 | F30: 1061164.5 | G30: 0 | I30: ='InfoProc 6B2a'!E24 -> 0 | J30: ='FE 6B2'!C4 -> 0.8 | K30: 0 | L30: ='FE 6B2'!C9 -> 0.6 | M30: 0 | N30: 0 | P30: 0
B31: ='InfoProc 6B2a'!C25& "- " & 'InfoBase 6B2a'!D37 -> Ica- EPS Selva Central S.A. | C31: ='InfoProc 6B2a'!F25 -> 51.768 | D31: ='InfoProc 6B2a'!$C$92 -> 18250 | E31: 0 | F31: 944766 | G31: 0 | I31: ='InfoProc 6B2a'!E25 -> 0 | J31: ='FE 6B2'!C4 -> 0.8 | K31: 0 | L31: ='FE 6B2'!C9 -> 0.6 | M31: 0 | N31: 0 | P31: 0
B32: ='InfoProc 6B2a'!C26& "- " & 'InfoBase 6B2a'!D38 -> Ica- EMAPA MOYOBAMBA S.R.LTDA. | C32: ='InfoProc 6B2a'!F26 -> 28.268 | D32: ='InfoProc 6B2a'!$C$92 -> 18250 | E32: 0 | F32: 515891 | G32: 0 | I32: ='InfoProc 6B2a'!E26 -> 0 | J32: ='FE 6B2'!C4 -> 0.8 | K32: 0 | L32: ='FE 6B2'!C9 -> 0.6 | M32: 0 | N32: 0 | P32: 0
B33: ='InfoProc 6B2a'!C27& "- " & 'InfoBase 6B2a'!D39 -> Ica- EMAPA HUANCAVELICA S.A.C | C33: ='InfoProc 6B2a'!F27 -> 89.766 | D33: ='InfoProc 6B2a'!$C$92 -> 18250 | E33: 0 | F33: 1638229.5 | G33: 0 | I33: ='InfoProc 6B2a'!E27 -> 1 | J33: ='FE 6B2'!C4 -> 0.8 | K33: 0.8 | L33: ='FE 6B2'!C9 -> 0.6 | M33: 0.48 | N33: 786350.16 | P33: 0.78635016
B34: ='InfoProc 6B2a'!C28& "- " & 'InfoBase 6B2a'!D40 -> Ica- EPS MOQUEGUA S.A. | C34: ='InfoProc 6B2a'!F28 -> 106.835 | D34: ='InfoProc 6B2a'!$C$92 -> 18250 | E34: 0 | F34: 1949738.75 | G34: 0 | I34: ='InfoProc 6B2a'!E28 -> 0.5175960062 | J34: ='FE 6B2'!C4 -> 0.8 | K34: 0.414076805 | L34: ='FE 6B2'!C9 -> 0.6 | M34: 0.248446083 | N34: 484404.9553 | P34: 0.4844049553
B35: ='InfoProc 6B2a'!C29& "- " & 'InfoBase 6B2a'!D41 -> Junín- EMAPA Y S.R.L. | C35: ='InfoProc 6B2a'!F29 -> 44.657 | D35: ='InfoProc 6B2a'!$C$92 -> 18250 | E35: 0 | F35: 814990.25 | G35: 0 | I35: ='InfoProc 6B2a'!E29 -> 0.1809999178 | J35: ='FE 6B2'!C4 -> 0.8 | K35: 0.1447999342 | L35: ='FE 6B2'!C9 -> 0.6 | M35: 0.08687996055 | N35: 70806.32077 | P35: 0.07080632077
B36: ='InfoProc 6B2a'!C30& "- " & 'InfoBase 6B2a'!D42 -> Junín- EMAPA HUARAL S.A. | C36: ='InfoProc 6B2a'!F30 -> 30.832 | D36: ='InfoProc 6B2a'!$C$92 -> 18250 | E36: 0 | F36: 562684 | G36: 0 | I36: ='InfoProc 6B2a'!E30 -> 0 | J36: ='FE 6B2'!C4 -> 0.8 | K36: 0 | L36: ='FE 6B2'!C9 -> 0.6 | M36: 0 | N36: 0 | P36: 0
B37: ='InfoProc 6B2a'!C31& "- " & 'InfoBase 6B2a'!D43 -> Junín- EMAPA HUACHO S.A. | C37: ='InfoProc 6B2a'!F31 -> 45.737 | D37: ='InfoProc 6B2a'!$C$92 -> 18250 | E37: 0 | F37: 834700.25 | G37: 0 | I37: ='InfoProc 6B2a'!E31 -> 0 | J37: ='FE 6B2'!C4 -> 0.8 | K37: 0 | L37: ='FE 6B2'!C9 -> 0.6 | M37: 0 | N37: 0 | P37: 0
B38: ='InfoProc 6B2a'!C32& "- " & 'InfoBase 6B2a'!D44 -> Junín- SEDAPAL S.A. | C38: ='InfoProc 6B2a'!F32 -> 0 | D38: ='InfoProc 6B2a'!$C$92 -> 18250 | E38: 0 | F38: 0 | G38: 0 | I38: ='InfoProc 6B2a'!E32 -> 0 | J38: ='FE 6B2'!C4 -> 0.8 | K38: 0 | L38: ='FE 6B2'!C9 -> 0.6 | M38: 0 | N38: 0 | P38: 0
B39: ='InfoProc 6B2a'!C33& "- " & 'InfoBase 6B2a'!D45 -> Junín- EPS ILO S.A. | C39: ='InfoProc 6B2a'!F33 -> 0 | D39: ='InfoProc 6B2a'!$C$92 -> 18250 | E39: 0 | F39: 0 | G39: 0 | I39: ='InfoProc 6B2a'!E33 -> 0 | J39: ='FE 6B2'!C4 -> 0.8 | K39: 0 | L39: ='FE 6B2'!C9 -> 0.6 | M39: 0 | N39: 0 | P39: 0
B40: ='InfoProc 6B2a'!C34& "- " & 'InfoBase 6B2a'!D46 -> La Libertad- SEDALIB S.A. | C40: ='InfoProc 6B2a'!F34 -> 522.462 | D40: ='InfoProc 6B2a'!$C$92 -> 18250 | E40: 0 | F40: 9534931.5 | G40: 0 | I40: ='InfoProc 6B2a'!E34 -> 0.8773103943 | J40: ='FE 6B2'!C4 -> 0.8 | K40: 0.7018483154 | L40: ='FE 6B2'!C9 -> 0.6 | M40: 0.4211089893 | N40: 4015245.367 | P40: 4.015245367
B41: ='InfoProc 6B2a'!C35& "- " & 'InfoBase 6B2a'!D47 -> Lambayeque- EPSEL S.A. | C41: ='InfoProc 6B2a'!F35 -> 524.691 | D41: ='InfoProc 6B2a'!$C$92 -> 18250 | E41: 0 | F41: 9575610.75 | G41: 0 | I41: ='InfoProc 6B2a'!E35 -> 0.702903606 | J41: ='FE 6B2'!C4 -> 0.8 | K41: 0.5623228848 | L41: ='FE 6B2'!C9 -> 0.6 | M41: 0.3373937309 | N41: 3230751.037 | P41: 3.230751037
B42: ='InfoProc 6B2a'!C36& "- " & 'InfoBase 6B2a'!D48 -> Lima- SEDAPAR S.A. | C42: ='InfoProc 6B2a'!F36 -> 71.055 | D42: ='InfoProc 6B2a'!$C$92 -> 18250 | E42: 0 | F42: 1296753.75 | G42: 0 | I42: ='InfoProc 6B2a'!E36 -> 0.007475936066 | J42: ='FE 6B2'!C4 -> 0.8 | K42: 0.005980748853 | L42: ='FE 6B2'!C9 -> 0.6 | M42: 0.003588449312 | N42: 4653.335102 | P42: 0.004653335102
B43: ='InfoProc 6B2a'!C37& "- " & 'InfoBase 6B2a'!D49 -> Lima- SEDACUSCO S.A. | C43: ='InfoProc 6B2a'!F37 -> 35.231 | D43: ='InfoProc 6B2a'!$C$92 -> 18250 | E43: 0 | F43: 642965.75 | G43: 0 | I43: ='InfoProc 6B2a'!E37 -> 0 | J43: ='FE 6B2'!C4 -> 0.8 | K43: 0 | L43: ='FE 6B2'!C9 -> 0.6 | M43: 0 | N43: 0 | P43: 0
B44: ='InfoProc 6B2a'!C38& "- " & 'InfoBase 6B2a'!D50 -> Lima- EPS GRAU S.A. | C44: ='InfoProc 6B2a'!F38 -> 71.687 | D44: ='InfoProc 6B2a'!$C$92 -> 18250 | E44: 0 | F44: 1308287.75 | G44: 0 | I44: ='InfoProc 6B2a'!E38 -> 0 | J44: ='FE 6B2'!C4 -> 0.8 | K44: 0 | L44: ='FE 6B2'!C9 -> 0.6 | M44: 0 | N44: 0 | P44: 0
B45: ='InfoProc 6B2a'!C39& "- " & 'InfoBase 6B2a'!D51 -> Lima- EPS CHAVIN S.A. | C45: ='InfoProc 6B2a'!F39 -> 5639.805 | D45: ='InfoProc 6B2a'!$C$92 -> 18250 | E45: 0 | F45: 102926441.2 | G45: 0 | I45: ='InfoProc 6B2a'!E39 -> 0.05790968364 | J45: ='FE 6B2'!C4 -> 0.8 | K45: 0.04632774691 | L45: ='FE 6B2'!C9 -> 0.6 | M45: 0.02779664815 | N45: 2861010.073 | P45: 2.861010073
B46: ='InfoProc 6B2a'!C40& "- " & 'InfoBase 6B2a'!D52 -> Lima- EMAQ S.R.LTDA. | C46: ='InfoProc 6B2a'!F40 -> 46.594 | D46: ='InfoProc 6B2a'!$C$92 -> 18250 | E46: 0 | F46: 850340.5 | G46: 0 | I46: ='InfoProc 6B2a'!E40 -> 0 | J46: ='FE 6B2'!C4 -> 0.8 | K46: 0 | L46: ='FE 6B2'!C9 -> 0.6 | M46: 0 | N46: 0 | P46: 0
B47: ='InfoProc 6B2a'!C41& "- " & 'InfoBase 6B2a'!D53 -> Loreto- EMAPAB S.R.LTDA. | C47: ='InfoProc 6B2a'!F41 -> 189.431 | D47: ='InfoProc 6B2a'!$C$92 -> 18250 | E47: 0 | F47: 3457115.75 | G47: 0 | I47: ='InfoProc 6B2a'!E41 -> 0 | J47: ='FE 6B2'!C4 -> 0.8 | K47: 0 | L47: ='FE 6B2'!C9 -> 0.6 | M47: 0 | N47: 0 | P47: 0
B48: ='InfoProc 6B2a'!C42& "- " & 'InfoBase 6B2a'!D54 -> Madre de Dios- SEMAPA BARRANCA S.A. | C48: ='InfoProc 6B2a'!F42 -> 13.888 | D48: ='InfoProc 6B2a'!$C$92 -> 18250 | E48: 0 | F48: 253456 | G48: 0 | I48: ='InfoProc 6B2a'!E42 -> 0 | J48: ='FE 6B2'!C4 -> 0.8 | K48: 0 | L48: ='FE 6B2'!C9 -> 0.6 | M48: 0 | N48: 0 | P48: 0
B49: ='InfoProc 6B2a'!C43& "- " & 'InfoBase 6B2a'!D55 -> Moquegua- EMAPICA S.A. | C49: ='InfoProc 6B2a'!F43 -> 30.81 | D49: ='InfoProc 6B2a'!$C$92 -> 18250 | E49: 0 | F49: 562282.5 | G49: 0 | I49: ='InfoProc 6B2a'!E43 -> 0.7042056493 | J49: ='FE 6B2'!C4 -> 0.8 | K49: 0.5633645194 | L49: ='FE 6B2'!C9 -> 0.6 | M49: 0.3380187116 | N49: 190062.0062 | P49: 0.1900620062
B50: ='InfoProc 6B2a'!C44& "- " & 'InfoBase 6B2a'!D56 -> Moquegua- EMPSSAPAL S.A. | C50: ='InfoProc 6B2a'!F44 -> 38.067 | D50: ='InfoProc 6B2a'!$C$92 -> 18250 | E50: 0 | F50: 694722.75 | G50: 0 | I50: ='InfoProc 6B2a'!E44 -> 0.6306861962 | J50: ='FE 6B2'!C4 -> 0.8 | K50: 0.504548957 | L50: ='FE 6B2'!C9 -> 0.6 | M50: 0.3027293742 | N50: 210312.9833 | P50: 0.2103129833
B51: ='InfoProc 6B2a'!C45& "- " & 'InfoBase 6B2a'!D57 -> Piura- EPS SIERRA CENTRAL S.R.L. | C51: ='InfoProc 6B2a'!F45 -> 578.826 | D51: ='InfoProc 6B2a'!$C$92 -> 18250 | E51: 0 | F51: 10563574.5 | G51: 0 | I51: ='InfoProc 6B2a'!E45 -> 0.5758525829 | J51: ='FE 6B2'!C4 -> 0.8 | K51: 0.4606820663 | L51: ='FE 6B2'!C9 -> 0.6 | M51: 0.2764092398 | N51: 2919869.597 | P51: 2.919869597
B52: ='InfoProc 6B2a'!C46& "- " & 'InfoBase 6B2a'!D58 -> Puno- EPS NOR PUNO S.A. | C52: ='InfoProc 6B2a'!F46 -> 75.823 | D52: ='InfoProc 6B2a'!$C$92 -> 18250 | E52: 0 | F52: 1383769.75 | G52: 0 | I52: ='InfoProc 6B2a'!E46 -> 0.7493477008 | J52: ='FE 6B2'!C4 -> 0.8 | K52: 0.5994781606 | L52: ='FE 6B2'!C9 -> 0.6 | M52: 0.3596868964 | N52: 497723.8467 | P52: 0.4977238467
B53: ='InfoProc 6B2a'!C47& "- " & 'InfoBase 6B2a'!D59 -> Puno- SEDAJULIACA S.A. | C53: ='InfoProc 6B2a'!F47 -> 6.212 | D53: ='InfoProc 6B2a'!$C$92 -> 18250 | E53: 0 | F53: 113369 | G53: 0 | I53: ='InfoProc 6B2a'!E47 -> 0 | J53: ='FE 6B2'!C4 -> 0.8 | K53: 0 | L53: ='FE 6B2'!C9 -> 0.6 | M53: 0 | N53: 0 | P53: 0
B54: ='InfoProc 6B2a'!C48& "- " & 'InfoBase 6B2a'!D60 -> Puno- EPS MANTARO S.A. | C54: ='InfoProc 6B2a'!F48 -> 0 | D54: ='InfoProc 6B2a'!$C$92 -> 18250 | E54: 0 | F54: 0 | G54: 0 | I54: ='InfoProc 6B2a'!E48 -> 0 | J54: ='FE 6B2'!C4 -> 0.8 | K54: 0 | L54: ='FE 6B2'!C9 -> 0.6 | M54: 0 | N54: 0 | P54: 0
B55: ='InfoProc 6B2a'!C49& "- " & 'InfoBase 6B2a'!D61 -> Puno- EMUSAP ABANCAY S.A. | C55: ='InfoProc 6B2a'!F49 -> 111.414 | D55: ='InfoProc 6B2a'!$C$92 -> 18250 | E55: 0 | F55: 2033305.5 | G55: 0 | I55: ='InfoProc 6B2a'!E49 -> 0.800712972 | J55: ='FE 6B2'!C4 -> 0.8 | K55: 0.6405703776 | L55: ='FE 6B2'!C9 -> 0.6 | M55: 0.3843422266 | N55: 781485.1632 | P55: 0.7814851632
B56: ='InfoProc 6B2a'!C50& "- " & 'InfoBase 6B2a'!D62 -> Puno- EMSAP CHANKA S.R.L. | C56: ='InfoProc 6B2a'!F50 -> 0 | D56: ='InfoProc 6B2a'!$C$92 -> 18250 | E56: 0 | F56: 0 | G56: 0 | I56: ='InfoProc 6B2a'!E50 -> 0 | J56: ='FE 6B2'!C4 -> 0.8 | K56: 0 | L56: ='FE 6B2'!C9 -> 0.6 | M56: 0 | N56: 0 | P56: 0
B57: ='InfoProc 6B2a'!C51& "- " & 'InfoBase 6B2a'!D63 -> San Martín- EPS MARAÑON S.R.L. | C57: ='InfoProc 6B2a'!F51 -> 85.242 | D57: ='InfoProc 6B2a'!$C$92 -> 18250 | E57: 0 | F57: 1555666.5 | G57: 0 | I57: ='InfoProc 6B2a'!E51 -> 0 | J57: ='FE 6B2'!C4 -> 0.8 | K57: 0 | L57: ='FE 6B2'!C9 -> 0.6 | M57: 0 | N57: 0 | P57: 0
B58: ='InfoProc 6B2a'!C52& "- " & 'InfoBase 6B2a'!D64 -> San Martín- SEDAM HUANCAYO S.A.C. | C58: ='InfoProc 6B2a'!F52 -> 31.616 | D58: ='InfoProc 6B2a'!$C$92 -> 18250 | E58: 0 | F58: 576992 | G58: 0 | I58: ='InfoProc 6B2a'!E52 -> 0.2267658395 | J58: ='FE 6B2'!C4 -> 0.8 | K58: 0.1814126716 | L58: ='FE 6B2'!C9 -> 0.6 | M58: 0.108847603 | N58: 62804.19613 | P58: 0.06280419613
B59: ='InfoProc 6B2a'!C53& "- " & 'InfoBase 6B2a'!D65 -> San Martín- EMSAPA CALCA S.R.L. | C59: ='InfoProc 6B2a'!F53 -> 713.831 | D59: ='InfoProc 6B2a'!$C$92 -> 18250 | E59: 0 | F59: 13027415.75 | G59: 0 | I59: ='InfoProc 6B2a'!E53 -> 0.1356548959 | J59: ='FE 6B2'!C4 -> 0.8 | K59: 0.1085239167 | L59: ='FE 6B2'!C9 -> 0.6 | M59: 0.06511435003 | N59: 848271.7092 | P59: 0.8482717092
B60: ='InfoProc 6B2a'!C54& "- " & 'InfoBase 6B2a'!D66 -> Tacna- EPS AGUAS DEL ALTIPLANO | C60: ='InfoProc 6B2a'!F54 -> 181.15645 | D60: ='InfoProc 6B2a'!$C$92 -> 18250 | E60: 0 | F60: 3306105.212 | G60: 0 | I60: ='InfoProc 6B2a'!E54 -> 0.9580543712 | J60: ='FE 6B2'!C4 -> 0.8 | K60: 0.766443497 | L60: ='FE 6B2'!C9 -> 0.6 | M60: 0.4598660982 | N60: 1520365.704 | P60: 1.520365704
B61: ='InfoProc 6B2a'!C55& "- " & 'InfoBase 6B2a'!D67 -> Tumbes- EMSAPA YAULI S.RL.L. | C61: ='InfoProc 6B2a'!F55 -> 58.939 | D61: ='InfoProc 6B2a'!$C$92 -> 18250 | E61: 0 | F61: 1075636.75 | G61: 0 | I61: ='InfoProc 6B2a'!E55 -> 0.2658713461 | J61: ='FE 6B2'!C4 -> 0.8 | K61: 0.2126970769 | L61: ='FE 6B2'!C9 -> 0.6 | M61: 0.1276182461 | N61: 137270.8755 | P61: 0.1372708755
B62: ='InfoProc 6B2a'!C56& "- " & 'InfoBase 6B2a'!D68 -> Ucayali- SEDAPAR S.R.L. (Rioja) | C62: ='InfoProc 6B2a'!F56 -> 82.287 | D62: ='InfoProc 6B2a'!$C$92 -> 18250 | E62: 0 | F62: 1501737.75 | G62: 0 | I62: ='InfoProc 6B2a'!E56 -> 0 | J62: ='FE 6B2'!C4 -> 0.8 | K62: 0 | L62: ='FE 6B2'!C9 -> 0.6 | M62: =K62*L62 -> 0 | N62: 0 | P62: 0
O63: 0 | P63: =SUM(P13:P62) -> 20.7814554

Sheet Emisiones GEI 6B2b
B2: Estimación de óxido nitroso generado por excretas humanas
B4: Sector | C4: Desechos
B5: Categoría | C5: Aguas residuales domésticas
B6: Código de categoría | C6: 6B2b
C8: A | D8: B | E8: C | F8: D | G8: E | H8: F | I8: G | J8: H
C9: Consumo per-cápita de proteínas (Kg proteína/persona/año) | D9: Población (número) | E9: Fracción de Nitrógeno en la proteína (Kg N/Kg proteína) | F9: Cantidad de N en las excretas producidas (Kg N/año) | G9: Cantidad de N en la orina (Kg N/año) | H9: Cantidad neta de N en la orina producida (Kg N/año) | I9: Factor de Emisión (Kg N2O-N/Kg N en el excremento producido) | J9: Total Anual de Emisiones de N2O (Gg N2O/año)
F11: D = A x B x C | H11: F = D - E | J11: H = (F x G) x (44/28) / 1 000 000
B12: Total | C12: ='InfoBase 6B2b'!D17/'Prop. y Fact. de conversión'!C17*365 -> 24.455 | D12: ='InfoBase 6B2b(población)'!E18 -> 25983588 | E12: ='FE 6B2'!C14 -> 0.16 | F12: =C12*D12*E12 -> 101668583.1 | G12: 0 | H12: =F12-G12 -> 101668583.1 | I12: ='FE 6B2'!C19 -> 0.01 | J12: =(H12*I12)*(44/28)/1000000 -> 1.597649163

Sheet Resultados INGEI
B2: Inventario Nacional de Gases de Efecto Invernadero del sector Desechos - Tratamiento y Eliminacion de aguas residuales domésticas 2005
B4: Código de categorías de fuentes 1996* | F4: Categorías de fuentes y sumideros | G4: Dióxido de carbono [GgCO2] | H4: Metano [MgCH4] | I4: Óxido nitroso [MgN2O] | J4: Emisiones de GEI [GgCO2e]
B5: 6 | F5: Desechos | G5: =G6+G8 -> 0 | H5: =H6+H8 -> 20781.4554 | I5: 1597.649163 | J5: =J6+J8 -> 931.6818
C6: 6A | F6: Disposición de residuos sólidos | G6: =SUM(G7) -> 0
D7: 6A1 | F7: Residuos sólidos
C8: 6B | F8: Tratamiento de aguas residuales | G8: =SUM(G9:G10) -> 0 | H8: =SUM(H9:H10) -> 20781.4554 | I8: =SUM(I9:I10) -> 1597.649163 | J8: =SUM(J9:J10) -> 931.6818
D9: 6B1 | F9: Efluentes industriales
D10: 6B2 | F10: Tratamiento y eliminación de aguas residuales domésticas | G10: =SUM(G11:G12) -> 0 | H10: =SUM(H11:H12) -> 20781.4554 | I10: 1597.649163 | J10: 931.6818
E11: 6B2a | F11: Aguas residuales domésticas | G11: 0 | H11: ='Emisiones GEI 6B2a'!P63*1000 -> 20781.4554 | I11: 0 | J11: =ROUND(G11+H11*21/1000+I11*310/1000,4) -> 436.4106
E12: 6B2b | F12: Excretas humanas | G12: 0 | H12: 0 | I12: ='Emisiones GEI 6B2b'!J12*1000 -> 1597.649163 | J12: 495.2712
B13: * Han sido creadas para el INGEI 6A1, 6B2a y 6B2b (ver hoja de caracterización)
